fUSD/lending_fUSD_20240409
["ID","MTS","AMOUNT","RATE_DAILY","PERIOD"]
[322016183,1712688642501,-693.31,0.00019178,2]
[322016184,1712688642510,-500.0,0.00019178,2]
[322016185,1712688642520,-507.93,0.00019178,2]
[322016186,1712688642529,-500.0,0.00019178,2]
[322016187,1712688642538,-500.0,0.00019178,2]
[322016188,1712688642547,-500.0,0.00019178,2]
[322016189,1712688642557,-500.0,0.00019178,2]
[322016190,1712688642566,-500.0,0.00019178,2]
[322016191,1712688642575,-500.0,0.00019178,2]
[322016192,1712688642584,-555.45,0.00019178,2]
[322016193,1712688642593,-500.0,0.00019178,2]
[322016194,1712688642602,-518.13,0.00019178,2]
[322016195,1712688642612,-988.53,0.00019178,2]
[322016196,1712688642621,-500.0,0.00019178,2]
[322016197,1712688642630,-500.0,0.00019178,2]
[322016198,1712688642640,-500.0,0.00019178,2]
[322016199,1712688642649,-500.0,0.00019178,2]
[322016200,1712688642659,-1693.03,0.00019178,2]
[322016201,1712688642668,-1059.04,0.00019178,2]
[322016202,1712688642677,-835.26,0.00019178,2]
[322016203,1712688642686,-675.53,0.00019178,2]
[322016204,1712688642695,-500.0,0.00019178,2]
[322016205,1712688642704,-500.0,0.00019178,2]
[322016206,1712688642714,-653.08,0.00019178,2]
[322016207,1712688642723,-500.0,0.00019178,2]
[322016208,1712688642732,-1792.83,0.00019178,2]
[322016209,1712688642741,-500.0,0.00019178,2]
[322016210,1712688642751,-500.0,0.00019178,2]
[322016211,1712688642760,-1753.89,0.00019178,2]
[322016212,1712688642769,-981.36,0.00019178,2]
[322016213,1712688642779,-614.08,0.00019178,2]
[322016214,1712688642788,-500.0,0.00019178,2]
[322016215,1712688642797,-500.0,0.00019178,2]
[322016216,1712688642806,-500.0,0.00019178,2]
[322016217,1712688642815,-500.0,0.00019178,2]
[322016218,1712688642824,-500.0,0.00019178,2]
[322016219,1712688642834,-155.21,0.0001918,2]
[322016220,1712688642843,-150.0,0.00019182,2]
[322016221,1712688642853,-150.0,0.00019184,2]
[322016222,1712688642863,-150.0,0.00019202,2]
[322016223,1712688642872,-210.93795014,0.0001921,2]
[322016224,1712688642882,-2035.3256,0.00019352,2]
[322016225,1712688642891,-1279.48061474,0.00019366,2]
[322016226,1712688642900,-150.0,0.00019399,2]
[322016227,1712688642909,-205.83654435,0.00019442,2]
[322016228,1712688642919,-500.0,0.00019452,2]
[322016229,1712688642928,-650.04,0.00019452,2]
[322016230,1712688642939,-279.5523168,0.00019452,2]
[322016231,1712688642948,-500.0,0.00019452,2]
[322016232,1712688642959,-500.0,0.00019452,2]
[322016233,1712688642968,-515.4849364,0.00019452,2]
[322016234,1712688642977,-500.0,0.00019452,2]
[322016235,1712688642987,-500.0,0.00019452,2]
[322016236,1712688642997,-500.0,0.00019452,2]
[322016237,1712688643006,-500.0,0.00019452,2]
[322016238,1712688643015,-500.0,0.00019452,2]
[322016239,1712688643025,-500.0,0.00019452,2]
[322016240,1712688643035,-500.0,0.00019452,2]
[322016241,1712688643044,-500.0,0.00019452,2]
[322016242,1712688643053,-500.0,0.00019452,2]
[322016243,1712688643063,-500.0,0.00019452,2]
[322016244,1712688643073,-500.0,0.00019452,2]
[322016245,1712688643082,-500.0,0.00019452,2]
[322016246,1712688643092,-500.0,0.00019452,2]
[322016247,1712688643101,-500.0,0.00019452,2]
[322016248,1712688643110,-500.0,0.00019452,2]
[322016249,1712688643120,-587.12996338,0.00019452,2]
[322016250,1712688643130,-500.0,0.00019452,2]
[322016251,1712688643139,-500.0,0.00019452,2]
[322016252,1712688643148,-500.0,0.00019452,2]
[322016253,1712688643159,-500.0,0.00019452,2]
[322016254,1712688643168,-500.0,0.00019452,2]
[322016255,1712688643177,-497.75282363,0.00019452,2]
[322016256,1712688643186,-500.0,0.00019452,2]
[322016257,1712688643195,-500.0,0.00019452,2]
[322016258,1712688643204,-500.0,0.00019452,2]
[322016259,1712688643214,-500.0,0.00019452,2]
[322016261,1712688643226,-500.0,0.00019452,2]
[322016263,1712688643236,-500.0,0.00019452,2]
[322016265,1712688643245,-500.0,0.00019452,2]
[322016267,1712688643254,-500.0,0.00019452,2]
[322016269,1712688643263,-500.0,0.00019452,2]
[322016271,1712688643272,-500.0,0.00019452,2]
[322016273,1712688643282,-500.0,0.00019452,2]
[322016275,1712688643291,-150.0,0.00019452,2]
[322016277,1712688643300,-500.0,0.00019452,2]
[322016278,1712688643310,-500.0,0.00019452,2]
[322016279,1712688643319,-500.0,0.00019452,2]
[322016280,1712688643328,-500.0,0.00019452,2]
[322016281,1712688643337,-500.0,0.00019452,2]
[322016282,1712688643346,-500.0,0.00019452,2]
[322016283,1712688643355,-563.52,0.00019452,2]
[322016284,1712688643364,-500.0,0.00019452,2]
[322016285,1712688643373,-500.0,0.00019452,2]
[322016286,1712688643382,-500.0,0.00019452,2]
[322016287,1712688643392,-500.0,0.00019452,2]
[322016288,1712688643401,-500.0,0.00019452,2]
[322016289,1712688643410,-564.86885249,0.00019452,2]
[322016290,1712688643419,-500.0,0.00019452,2]
[322016291,1712688643429,-500.0,0.00019452,2]
[322016292,1712688643438,-500.0,0.00019452,2]
[322016293,1712688643447,-500.0,0.00019452,2]
[322016294,1712688643457,-500.0,0.00019452,2]
[322016295,1712688643466,-500.0,0.00019452,2]
[322016296,1712688643476,-500.0,0.00019452,2]
[322016297,1712688643485,-223.26860402,0.00019452,2]
[322016298,1712688643495,-500.0,0.00019452,2]
[322016299,1712688643504,-500.0,0.00019452,2]
[322016300,1712688643513,-222.3968856,0.00019452,2]
[322016301,1712688643523,-500.0,0.00019452,2]
[322016302,1712688643532,-500.0,0.00019452,2]
[322016303,1712688643541,-500.0,0.00019452,2]
[322016304,1712688643550,-500.0,0.00019452,2]
[322016305,1712688643559,-500.0,0.00019452,2]
[322016306,1712688643569,-1544.67,0.00019452,2]
[322016307,1712688643578,-1059.78,0.00019452,2]
[322016308,1712688643587,-500.0,0.00019452,2]
[322016309,1712688643596,-500.0,0.00019452,2]
[322016310,1712688643605,-725.61,0.00019452,2]
[322016311,1712688643615,-830.58,0.00019452,2]
[322016312,1712688643624,-636.02,0.00019452,2]
[322016313,1712688643634,-518.79,0.00019452,2]
[322016314,1712688643643,-953.84,0.00019452,2]
[322016315,1712688643652,-500.0,0.00019452,2]
[322016316,1712688643661,-500.0,0.00019452,2]
[322016317,1712688643670,-500.0,0.00019452,2]
[322016318,1712688643679,-6778.66,0.00019452,2]
[322016319,1712688643689,-500.0,0.00019452,2]
[322016320,1712688643698,-3007.07,0.00019452,2]
[322016321,1712688643707,-500.0,0.00019452,2]
[322016322,1712688643716,-500.0,0.00019452,2]
[322016323,1712688643726,-500.0,0.00019452,2]
[322016324,1712688643735,-500.0,0.00019452,2]
[322016325,1712688643744,-500.0,0.00019452,2]
[322016326,1712688643753,-618.24337132,0.00019452,2]
[322016327,1712688643763,-500.0,0.00019452,2]
[322016330,1712688643975,-562.47,0.00019452,2]
[322016331,1712688643986,-737.36,0.00019452,2]
[322016332,1712688643995,-500.0,0.00019452,2]
[322016333,1712688644004,-500.0,0.00019452,2]
[322016334,1712688644014,-500.0,0.00019452,2]
[322016335,1712688644024,-1056.6,0.00019452,2]
[322016336,1712688644033,-500.0,0.00019452,2]
[322016337,1712688644044,-500.0,0.00019452,2]
[322016338,1712688644053,-500.0,0.00019452,2]
[322016339,1712688644062,-662.68,0.00019452,2]
[322016340,1712688644071,-500.0,0.00019452,2]
[322016341,1712688644080,-500.0,0.00019452,2]
[322016342,1712688644090,-500.0,0.00019452,2]
[322016343,1712688644099,-777.94,0.00019452,2]
[322016344,1712688644108,-745.15,0.00019452,2]
[322016345,1712688644118,-577.78,0.00019452,2]
[322016346,1712688644128,-500.0,0.00019452,2]
[322016347,1712688644137,-500.0,0.00019452,2]
[322016348,1712688644147,-500.0,0.00019452,2]
[322016349,1712688644156,-500.0,0.00019452,2]
[322016350,1712688644165,-1755.69,0.00019452,2]
[322016351,1712688644174,-500.0,0.00019452,2]
[322016352,1712688644184,-787.07,0.00019452,2]
[322016353,1712688644193,-1618.72,0.00019452,2]
[322016354,1712688644203,-500.0,0.00019452,2]
[322016355,1712688644212,-4763.27,0.00019452,2]
[322016356,1712688644222,-638.4,0.00019452,2]
[322016357,1712688644231,-500.0,0.00019452,2]
[322016358,1712688644240,-500.0,0.00019452,2]
[322016359,1712688644249,-500.0,0.00019452,2]
[322016360,1712688644258,-500.0,0.00019452,2]
[322016361,1712688644267,-332.03417539,0.00019452,2]
[322016362,1712688644276,-500.0,0.00019452,2]
[322016363,1712688644286,-500.0,0.00019452,2]
[322016364,1712688644296,-2043.71,0.00019452,2]
[322016365,1712688644305,-3938.39,0.00019452,2]
[322016366,1712688644314,-500.0,0.00019452,2]
[322016367,1712688644323,-528.14,0.00019452,2]
[322016368,1712688644333,-1130.0,0.00019452,2]
[322016369,1712688644342,-500.0,0.00019452,2]
[322016370,1712688644352,-1100.16,0.00019452,2]
[322016371,1712688644361,-500.0,0.00019452,2]
[322016372,1712688644370,-500.0,0.00019452,2]
[322016373,1712688644380,-500.0,0.00019452,2]
[322016374,1712688644389,-1069.45,0.00019452,2]
[322016375,1712688644398,-500.0,0.00019452,2]
[322016376,1712688644407,-500.0,0.00019452,2]
[322016377,1712688644416,-500.0,0.00019452,2]
[322016378,1712688644425,-552.6,0.00019452,2]
[322016379,1712688644434,-628.64,0.00019452,2]
[322016380,1712688644443,-572.65771166,0.00019452,2]
[322016381,1712688644453,-1089.87,0.00019452,2]
[322016382,1712688644462,-500.0,0.00019452,2]
[322016383,1712688644474,-500.0,0.00019452,2]
[322016384,1712688644484,-500.0,0.00019452,2]
[322016385,1712688644493,-1386.45,0.00019452,2]
[322016386,1712688644502,-500.0,0.00019452,2]
[322016387,1712688644512,-2362.02,0.00019452,2]
[322016388,1712688644521,-500.0,0.00019452,2]
[322016389,1712688644530,-500.0,0.00019452,2]
[322016390,1712688644540,-500.0,0.00019452,2]
[322016391,1712688644549,-529.91,0.00019452,2]
[322016392,1712688644559,-500.0,0.00019452,2]
[322016393,1712688644570,-278.96331968,0.00019452,2]
[322016394,1712688644580,-1167.99,0.00019452,2]
[322016395,1712688644590,-500.0,0.00019452,2]
[322016396,1712688644600,-1094.44,0.00019452,2]
[322016397,1712688644611,-6381.97,0.00019452,2]
[322016398,1712688644621,-500.0,0.00019452,2]
[322016399,1712688644631,-662.44,0.00019452,2]
[322016400,1712688644641,-500.0,0.00019452,2]
[322016401,1712688644651,-941.02,0.00019452,2]
[322016402,1712688644661,-500.0,0.00019452,2]
[322016403,1712688644673,-500.0,0.00019452,2]
[322016404,1712688644684,-500.0,0.00019452,2]
[322016405,1712688644695,-500.0,0.00019452,2]
[322016406,1712688644706,-650.04,0.00019452,2]
[322016407,1712688644716,-590.09,0.00019452,2]
[322016408,1712688644732,-1091.18,0.00019452,2]
[322016409,1712688644743,-693.31,0.00019452,2]
[322016410,1712688644752,-500.0,0.00019452,2]
[322016411,1712688644762,-507.93,0.00019452,2]
[322016412,1712688644772,-500.0,0.00019452,2]
[322016413,1712688644782,-500.0,0.00019452,2]
[322016414,1712688644791,-500.0,0.00019452,2]
[322016415,1712688644800,-500.0,0.00019452,2]
[322016416,1712688644811,-500.0,0.00019452,2]
[322016417,1712688644820,-500.0,0.00019452,2]
[322016418,1712688644830,-555.45,0.00019452,2]
[322016419,1712688644840,-500.0,0.00019452,2]
[322016420,1712688644849,-518.13,0.00019452,2]
[322016421,1712688644859,-988.53,0.00019452,2]
[322016422,1712688644868,-500.0,0.00019452,2]
[322016423,1712688644877,-500.0,0.00019452,2]
[322016424,1712688644887,-500.0,0.00019452,2]
[322016425,1712688644897,-500.0,0.00019452,2]
[322016426,1712688644906,-1693.03,0.00019452,2]
[322016427,1712688644918,-1059.04,0.00019452,2]
[322016428,1712688644927,-835.26,0.00019452,2]
[322016429,1712688644936,-675.53,0.00019452,2]
[322016430,1712688644946,-500.0,0.00019452,2]
[322016431,1712688644955,-500.0,0.00019452,2]
[322016432,1712688644966,-653.08,0.00019452,2]
[322016433,1712688644978,-500.0,0.00019452,2]
[322016434,1712688644987,-1792.83,0.00019452,2]
[322016435,1712688644996,-500.0,0.00019452,2]
[322016436,1712688645006,-500.0,0.00019452,2]
[322016437,1712688645015,-1753.89,0.00019452,2]
[322016438,1712688645024,-981.36,0.00019452,2]
[322016439,1712688645034,-614.08,0.00019452,2]
[322016440,1712688645045,-500.0,0.00019452,2]
[322016441,1712688645054,-500.0,0.00019452,2]
[322016442,1712688645064,-500.0,0.00019452,2]
[322016443,1712688645073,-500.0,0.00019452,2]
[322016444,1712688645084,-500.0,0.00019452,2]
[322016445,1712688645093,-210.93795014,0.00019491,2]
[322016446,1712688645102,-150.0,0.00019581,2]
[322016447,1712688645112,-1279.48061474,0.00019585,2]
[322016448,1712688645121,-150.0,0.00019702,2]
[322016449,1712688645131,-500.0,0.00019726,2]
[322016450,1712688645140,-650.04,0.00019726,2]
[322016451,1712688645149,-500.0,0.00019726,2]
[322016452,1712688645159,-500.0,0.00019726,2]
[322016453,1712688645168,-500.0,0.00019726,2]
[322016454,1712688645178,-500.0,0.00019726,2]
[322016455,1712688645187,-500.0,0.00019726,2]
[322016456,1712688645196,-500.0,0.00019726,2]
[322016457,1712688645206,-293.20347467,0.00019726,2]
[322016458,1712688645216,-500.0,0.00019726,2]
[322016459,1712688645228,-500.0,0.00019726,2]
[322016460,1712688645237,-500.0,0.00019726,2]
[322016461,1712688645246,-500.0,0.00019726,2]
[322016462,1712688645255,-500.0,0.00019726,2]
[322016463,1712688645264,-234.46255997,0.00019726,2]
[322016464,1712688645273,-500.0,0.00019726,2]
[322016465,1712688645282,-500.0,0.00019726,2]
[322016466,1712688645291,-500.0,0.00019726,2]
[322016467,1712688645300,-500.0,0.00019726,2]
[322016468,1712688645310,-500.0,0.00019726,2]
[322016469,1712688645319,-500.0,0.00019726,2]
[322016470,1712688645328,-500.0,0.00019726,2]
[322016471,1712688645337,-500.0,0.00019726,2]
[322016472,1712688645347,-500.0,0.00019726,2]
[322016473,1712688645356,-500.0,0.00019726,2]
[322016474,1712688645366,-500.0,0.00019726,2]
[322016475,1712688645375,-500.0,0.00019726,2]
[322016476,1712688645384,-500.0,0.00019726,2]
[322016477,1712688645393,-500.0,0.00019726,2]
[322016478,1712688645403,-500.0,0.00019726,2]
[322016479,1712688645412,-500.0,0.00019726,2]
[322016480,1712688645421,-500.0,0.00019726,2]
[322016481,1712688645430,-500.0,0.00019726,2]
[322016482,1712688645440,-500.0,0.00019726,2]
[322016483,1712688645449,-500.0,0.00019726,2]
[322016484,1712688645457,-166.88706746,0.00019726,2]
[322016485,1712688645467,-500.0,0.00019726,2]
[322016486,1712688645481,-500.0,0.00019726,2]
[322016487,1712688645490,-500.0,0.00019726,2]
[322016488,1712688645499,-500.0,0.00019726,2]
[322016489,1712688645508,-500.0,0.00019726,2]
[322016490,1712688645518,-500.0,0.00019726,2]
[322016491,1712688645527,-563.52,0.00019726,2]
[322016492,1712688645536,-500.0,0.00019726,2]
[322016493,1712688645545,-500.0,0.00019726,2]
[322016494,1712688645554,-500.0,0.00019726,2]
[322016495,1712688645563,-500.0,0.00019726,2]
[322016496,1712688645572,-500.0,0.00019726,2]
[322016497,1712688645581,-500.0,0.00019726,2]
[322016498,1712688645590,-500.0,0.00019726,2]
[322016499,1712688645599,-500.0,0.00019726,2]
[322016500,1712688645608,-500.0,0.00019726,2]
[322016501,1712688645617,-500.0,0.00019726,2]
[322016502,1712688645626,-472.62337972,0.00019726,2]
[322016503,1712688645635,-500.0,0.00019726,2]
[322016504,1712688645644,-500.0,0.00019726,2]
[322016505,1712688645653,-500.0,0.00019726,2]
[322016506,1712688645662,-500.0,0.00019726,2]
[322016507,1712688645671,-500.0,0.00019726,2]
[322016508,1712688645681,-284.00413859,0.00019726,2]
[322016509,1712688645690,-500.0,0.00019726,2]
[322016510,1712688645699,-500.0,0.00019726,2]
[322016511,1712688645708,-1544.67,0.00019726,2]
[322016512,1712688645717,-1059.78,0.00019726,2]
[322016513,1712688645727,-500.0,0.00019726,2]
[322016514,1712688645735,-500.0,0.00019726,2]
[322016515,1712688645745,-725.61,0.00019726,2]
[322016516,1712688645754,-830.58,0.00019726,2]
[322016517,1712688645763,-636.02,0.00019726,2]
[322016518,1712688645772,-518.79,0.00019726,2]
[322016519,1712688645781,-953.84,0.00019726,2]
[322016520,1712688645791,-500.0,0.00019726,2]
[322016521,1712688645801,-500.0,0.00019726,2]
[322016522,1712688645810,-500.0,0.00019726,2]
[322016523,1712688645819,-6778.66,0.00019726,2]
[322016524,1712688645829,-500.0,0.00019726,2]
[322016525,1712688645838,-3007.07,0.00019726,2]
[322016526,1712688645847,-497.44358231,0.00019726,2]
[322016527,1712688645857,-500.0,0.00019726,2]
[322016528,1712688645866,-500.0,0.00019726,2]
[322016529,1712688645875,-500.0,0.00019726,2]
[322016530,1712688645884,-500.0,0.00019726,2]
[322016531,1712688645893,-500.0,0.00019726,2]
[322016532,1712688645903,-562.47,0.00019726,2]
[322016533,1712688645913,-737.36,0.00019726,2]
[322016534,1712688645923,-500.0,0.00019726,2]
[322016535,1712688645932,-500.0,0.00019726,2]
[322016536,1712688645943,-500.0,0.00019726,2]
[322016537,1712688645952,-1056.6,0.00019726,2]
[322016538,1712688645962,-500.0,0.00019726,2]
[322016539,1712688645973,-500.0,0.00019726,2]
[322016540,1712688645982,-500.0,0.00019726,2]
[322016541,1712688645991,-662.68,0.00019726,2]
[322016542,1712688646000,-500.0,0.00019726,2]
[322016543,1712688646010,-500.0,0.00019726,2]
[322016544,1712688646019,-500.0,0.00019726,2]
[322016545,1712688646028,-745.15,0.00019726,2]
[322016546,1712688646038,-777.94,0.00019726,2]
[322016547,1712688646048,-577.78,0.00019726,2]
[322016548,1712688646057,-500.0,0.00019726,2]
[322016549,1712688646067,-500.0,0.00019726,2]
[322016550,1712688646075,-500.0,0.00019726,2]
[322016551,1712688646085,-500.0,0.00019726,2]
[322016552,1712688646095,-1755.69,0.00019726,2]
[322016553,1712688646104,-500.0,0.00019726,2]
[322016554,1712688646114,-787.07,0.00019726,2]
[322016555,1712688646123,-1618.72,0.00019726,2]
[322016556,1712688646132,-500.0,0.00019726,2]
[322016557,1712688646142,-4763.27,0.00019726,2]
[322016558,1712688646151,-638.4,0.00019726,2]
[322016559,1712688646160,-500.0,0.00019726,2]
[322016560,1712688646169,-500.0,0.00019726,2]
[322016561,1712688646179,-500.0,0.00019726,2]
[322016562,1712688646188,-371.35027045,0.00019726,2]
[322016563,1712688646197,-500.0,0.00019726,2]
[322016564,1712688646206,-500.0,0.00019726,2]
[322016566,1712688646216,-2043.71,0.00019726,2]
[322016568,1712688646228,-3938.39,0.00019726,2]
[322016569,1712688646237,-500.0,0.00019726,2]
[322016570,1712688646246,-528.14,0.00019726,2]
[322016571,1712688646255,-1130.0,0.00019726,2]
[322016572,1712688646264,-500.0,0.00019726,2]
[322016573,1712688646273,-1100.16,0.00019726,2]
[322016574,1712688646282,-500.0,0.00019726,2]
[322016575,1712688646291,-500.0,0.00019726,2]
[322016576,1712688646300,-500.0,0.00019726,2]
[322016577,1712688646309,-1069.45,0.00019726,2]
[322016578,1712688646322,-500.0,0.00019726,2]
[322016579,1712688646343,-500.0,0.00019726,2]
[322016580,1712688646366,-500.0,0.00019726,2]
[322016581,1712688646388,-552.6,0.00019726,2]
[322016582,1712688646410,-628.64,0.00019726,2]
[322016583,1712688646433,-1089.87,0.00019726,2]
[322016584,1712688646457,-500.0,0.00019726,2]
[322016585,1712688646480,-500.0,0.00019726,2]
[322016586,1712688646500,-500.0,0.00019726,2]
[322016587,1712688646519,-1386.45,0.00019726,2]
[322016588,1712688646528,-500.0,0.00019726,2]
[322016589,1712688646537,-500.0,0.00019726,2]
[322016590,1712688646546,-500.0,0.00019726,2]
[322016591,1712688646555,-500.0,0.00019726,2]
[322016592,1712688646565,-529.91,0.00019726,2]
[322016593,1712688646573,-500.0,0.00019726,2]
[322016594,1712688646583,-1167.99,0.00019726,2]
[322016595,1712688646592,-500.0,0.00019726,2]
[322016596,1712688646601,-1094.44,0.00019726,2]
[322016597,1712688646611,-6381.97,0.00019726,2]
[322016598,1712688646620,-500.0,0.00019726,2]
[322016599,1712688646629,-662.44,0.00019726,2]
[322016600,1712688646638,-500.0,0.00019726,2]
[322016601,1712688646648,-941.02,0.00019726,2]
[322016602,1712688646657,-500.0,0.00019726,2]
[322016603,1712688646667,-500.0,0.00019726,2]
[322016604,1712688646676,-500.0,0.00019726,2]
[322016605,1712688646685,-500.0,0.00019726,2]
[322016606,1712688646695,-650.04,0.00019726,2]
[322016607,1712688646704,-590.09,0.00019726,2]
[322016608,1712688646714,-1091.18,0.00019726,2]
[322016609,1712688646724,-693.31,0.00019726,2]
[322016610,1712688646734,-500.0,0.00019726,2]
[322016611,1712688646743,-507.93,0.00019726,2]
[322016612,1712688646752,-500.0,0.00019726,2]
[322016613,1712688646763,-500.0,0.00019726,2]
[322016614,1712688646772,-500.0,0.00019726,2]
[322016615,1712688646782,-500.0,0.00019726,2]
[322016616,1712688646791,-500.0,0.00019726,2]
[322016617,1712688646801,-500.0,0.00019726,2]
[322016618,1712688646811,-555.45,0.00019726,2]
[322016619,1712688646820,-500.0,0.00019726,2]
[322016620,1712688646829,-518.13,0.00019726,2]
[322016621,1712688646839,-988.53,0.00019726,2]
[322016622,1712688646848,-500.0,0.00019726,2]
[322016624,1712688646857,-500.0,0.00019726,2]
[322016626,1712688646866,-500.0,0.00019726,2]
[322016628,1712688646876,-500.0,0.00019726,2]
[322016630,1712688646885,-1693.03,0.00019726,2]
[322016632,1712688646894,-1059.04,0.00019726,2]
[322016634,1712688646903,-835.26,0.00019726,2]
[322016636,1712688646912,-675.53,0.00019726,2]
[322016637,1712688646922,-500.0,0.00019726,2]
[322016639,1712688646931,-500.0,0.00019726,2]
[322016640,1712688646942,-653.08,0.00019726,2]
[322016641,1712688646951,-500.0,0.00019726,2]
[322016642,1712688646960,-1792.83,0.00019726,2]
[322016643,1712688646974,-500.0,0.00019726,2]
[322016644,1712688646983,-500.0,0.00019726,2]
[322016645,1712688646992,-1753.89,0.00019726,2]
[322016646,1712688647002,-614.08,0.00019726,2]
[322016647,1712688647011,-981.36,0.00019726,2]
[322016648,1712688647020,-500.0,0.00019726,2]
[322016649,1712688647030,-500.0,0.00019726,2]
[322016650,1712688647040,-500.0,0.00019726,2]
[322016651,1712688647050,-500.0,0.00019726,2]
[322016652,1712688647059,-500.0,0.00019726,2]
[322016653,1712688647068,-210.93795014,0.00019773,2]
[322016654,1712688647078,-163.76,0.00019783,2]
[322016655,1712688647087,-1279.48061474,0.00019804,2]
[322016656,1712688647097,-150.0,0.00019854,2]
[322016657,1712688647107,-150.0,0.00019895,2]
[322016658,1712688647116,-3872.19122365,0.0002,2]
[322016659,1712688647126,-1694.89125517,0.0002,2]
[322016660,1712688647182,-18473.87375749,0.0002,2]
[322016661,1712688647191,-500.0,0.0002,2]
[322016662,1712688647200,-650.04,0.0002,2]
[322016663,1712688647209,-500.0,0.0002,2]
[322016664,1712688647220,-118.30703336,0.0002,2]
[322016665,1712688647232,-381.69296664,0.0002,2]
[322016666,1712688647241,-392.44090556,0.0002,2]
[322016667,1712688648131,-107.55909444,0.0002,2]
[322016668,1712688648141,-500.0,0.0002,2]
[322016669,1712688648150,-356.90786094,0.0002,2]
[322016670,1712688648162,-143.09213906,0.0002,2]
[322016671,1712688648171,-500.0,0.0002,2]
[322016672,1712688648181,-500.0,0.0002,2]
[322016673,1712688648191,-500.0,0.0002,2]
[322016674,1712688648200,-500.0,0.0002,2]
[322016675,1712688648210,-401.82404613,0.0002,2]
[322016676,1712688648222,-98.17595387,0.0002,2]
[322016677,1712688648232,-500.0,0.0002,2]
[322016678,1712688648241,-500.0,0.0002,2]
[322016679,1712688648250,-500.0,0.0002,2]
[322016680,1712688648260,-500.0,0.0002,2]
[322016681,1712688648269,-500.0,0.0002,2]
[322016682,1712688648278,-383.22153834,0.0002,2]
[322016683,1712688648290,-116.77846166,0.0002,2]
[322016684,1712688648299,-500.0,0.0002,2]
[322016685,1712688648308,-500.0,0.0002,2]
[322016686,1712688648317,-262.50153834,0.0002,2]
[322016687,1712688648916,-237.49846166,0.0002,2]
[322016688,1712688648925,-500.0,0.0002,2]
[322016689,1712688648935,-500.0,0.0002,2]
[322016690,1712688648945,-500.0,0.0002,2]
[322016691,1712688648954,-304.12869681,0.0002,2]
[322016692,1712688648996,-195.87130319,0.0002,2]
[322016693,1712688649005,-500.0,0.0002,2]
[322016694,1712688649015,-500.0,0.0002,2]
[322016695,1712688649024,-500.0,0.0002,2]
[322016696,1712688649033,-500.0,0.0002,2]
[322016697,1712688649043,-118.88869681,0.0002,2]
[322016700,1712688768465,504.36,0.0001718,2]
[322016701,1712688792038,-525.49198646,0.00018312,2]
[322016702,1712688792068,-2354.77756212,0.00018313,2]
[322016703,1712688792100,-325.03814807,0.00018313,2]
[322016704,1712688792119,-512.69131458,0.00018314,2]
[322016705,1712688792128,-12.80067188,0.00018314,2]